{"text_format":"1","workbook":"xlsx","n_sheets":3,"sheets":["Instrucciones","Reformulación Presupuesto Ab","Resumen presupuesto"],"not_rendered":{"charts":0,"images":5,"macros":1,"external_links":1,"defined_names":8,"comments":2,"pivot_tables":0},"unopened":[],"bounds":{"document_bytes":16777216,"sheet_cells":100000,"rows_first":2000,"rows_last":500,"rows_between":2000,"halvings":0,"cell_chars":16384,"cell_head_chars":4096},"cells_cut":0,"cells_raw":0,"read":"whole","date_system":"1900"}

{"sheet":"Instrucciones","index":0,"n_rows":25,"n_cols":10,"rows_kept":25,"cut":false,"hidden":false,"merged":[[23,1,23,16],[24,1,24,16],[1,9,1,11],[2,2,2,17],[5,2,5,17],[3,2,3,17]]}
[]
[null,null,null,null,null,null,null,null,null,"Doc_básico3_presup_reformulado_Ab INSTRUCCIONES"]
[null,null,"SUBVENCIONES DEL AYUNTAMIENTO DE BARCELONA POR EL FORTALECIMIENTO DE LA ECONOMÍA SOCIAL Y SOLIDARIA Y POR LA INTERCOOPERACIÓN EN LA ESTRATEGIA #ESSBCN2030 - FORTALEZCAMOS LA ESS 2023"]
[null,null,"FORTALECEMOS LA ESS 2023"]
[]
[null,null,"Aspectos relevantes relacionados con la reformulación"]
[]
[]
[]
[]
[null,"1. Rellenar la pestaña \"Reformulación Presupuesto\" con los datos económicos del proyecto:"]
[null,"1.1  Rellenar los cuadros DATOS BÁSICOS-PREVISIÓN DE GASTOS DEL PROYECTO SUBVENCIONABLE INICIAL, con los datos económicos de la propuesta inicial con subvención otorgada."]
[null,"1.2  Rellenar r los cuadros DATOS BÁSICOS-PREVISIÓN DE GASTOS DEL PROYECTO REFORMULADO, con los datos económicos de la propuesta de reformulación."]
[null,"2. Revisar y llenar la pestaña \"Resumen Presupuesto\" con los datos económicos del proyecto:"]
[null,"3. Imprimir las hojas de las 2 pestañas (Reformulación presupuesto y Resumen Presupuesto). En formato pdf."]
[]
[]
[]
[null,"Pulsa el icono para generar un documento PDF del libro"]
[]
[]
[]
[]
[null,"4. Si la solicitud se presentó por vía telemática, es necesario que registre la documentación, telemáticamente, como trámite específico, dentro de la convocatoria específica como anexión de documentos adicionales y utilice el número de trámite que el sistema de registro le dio en el momento de la presentación de la solicitud de la subvención."]
[null,"5. En caso de que registre la documentación telemáticamente, como instancia genérica, mediante certificado digital, le recomendamos que avise a la dirección de correo electrónico subvencions_ec_solidaria@bcn.cat,para poder realizar un seguimiento, así como también en los casos que presente la documentación a través de una Oficina de Atención Ciudadana del Ayuntamiento, si no ha podido obtener el certificado digital (los requisitos para obtenerlo los encontrará en la Oficina Virtual de Trámites de la Sede Electrónica:https://seuelectronica.ajuntament.barcelona.cat/oficinavirtual/)."]

{"sheet":"Reformulación Presupuesto Ab","index":1,"n_rows":105,"n_cols":10,"rows_kept":105,"cut":false,"hidden":false,"merged":[[3,0,4,8],[1,1,1,8],[18,0,18,3],[10,6,10,7],[18,6,18,8],[97,0,97,8],[98,0,98,8],[104,0,104,8],[6,2,6,5],[93,0,93,8],[99,0,99,8],[100,0,100,8],[101,0,101,8],[102,0,102,8],[103,0,103,8],[94,0,94,8],[95,0,95,8],[96,0,96,8]]}
[]
[null,"Reformulación de presupuesto Modalidad Ab"]
[]
["Programa de subvenciones del Ayuntamiento de Barcelona para la reactivación y fortalecimiento de la Economía Social y Solidaria y el desarrollo de proyectos de intercooperación que desarrollan la Estrategia #ESSBCN2030"]
[]
[]
[]
["DATOS BÁSICOS"]
["Nombre de la persona física/ jurídica",null,{"$f":"+IF(H9>Dadesbasiques[[#This Row],[Columna1]],\"ALERTA: La quantia de la subvenció atorgada no pot superar el 80% de la despesa total del projecte a subvencionar\", \" \")","v":" "},null,null,"  "]
["NIF de la persona física/ jurídica",null,{"$f":"+IF(H10>Dadesbasiques[[#This Row],[Columna1]],\"ALERTA: La quantia de la subvenció atorgada no pot superar el 80% de la despesa total del projecte a subvencionar\", \" \")","v":" "}]
["Nombre del proyecto subvencionable",null,{"$f":"+IF(H11>Dadesbasiques[[#This Row],[Columna1]],\"ALERTA: La quantia de la subvenció atorgada no pot superar el 80% de la despesa total del projecte a subvencionar\", \" \")","v":" "},null,null,null,"DATOS BÁSICOS PROYECTO REFORMULADO"]
["Importe total del proyecto subvencionable",null,null,null,null,null,"Importe total del proyecto REFORMULADO"]
["Importe imputable a la subvención municipal",null,null,null,null,null,"Importe imputable a la subvención OTORGADA"]
["Importe de la aportación / Cofinanciación de la organización",{"$f":"+B12-B13","v":0},null,null,null,null,"Importe de la aportación / Cofinanciación de la organización",{"$f":"H12-H13","v":0}]
["% del importe solicitado respecto al total del proyecto subvencionable (*)",{"$f":"B13/B12","v":{"$error":"#DIV/0!"}},null,null,null,null,"% del importe solicitado respecto al total del proyecto subvencionado",{"$f":"H13/H12","v":{"$error":"#DIV/0!"}},{"$f":"+IF(H15>Dadesbasiques[[#This Row],[Columna1]],\"*Aquest percentatge ha de ser igual o menor al percentatge subvencionat inicialment.\",\" \")","v":{"$error":"#DIV/0!"}}]
["Data inici del projecte subvencionat (dd/mm/aaaa)",null,{"$f":"+IF(H16>Dadesbasiques[[#This Row],[Columna1]],\"ALERTA: La quantia de la subvenció atorgada no pot superar el 80% de la despesa total del projecte a subvencionar\", \" \")","v":" "}]
["Data fi del projecte subvencionat (dd/mm/aaaa)",null,{"$f":"+IF(H17>Dadesbasiques[[#This Row],[Columna1]],\"ALERTA: La quantia de la subvenció atorgada no pot superar el 80% de la despesa total del projecte a subvencionar\", \" \")","v":" "}]
[]
["PREVISIÓN DE GASTOS DEL PROYECTO SUBVENCIONABLE INICIAL",null,null,null,null,null,"PREVISIÓN DE GASTOS DEL PROYECTO REFORMULADO"]
[]
["Partidas","Importe imputable a la subvención municipal","Importe de la aportación / Cofinanciación de la organización","Importe total del proyecto",null,null,"Importe imputable a la subvención municipal","Importe de la aportación / Cofinanciación de la organización","Importe total del proyecto"]
["D.1  Nóminas y seguridad social IRPF (régimen general o régimen de autónomos) del personal propio vinculado al proyecto (máximo 40% del importe de la subvención)",{"$f":"SUM(B23:B26)","v":0},{"$f":"SUM(C23:C26)","v":0},{"$f":"+B22+C22","v":0},null,null,{"$f":"SUM(G23:G26)","v":0},{"$f":"SUM(H23:H26)","v":0},{"$f":"+G22+H22","v":0}]
[null,null,null,{"$f":"+B23+C23","v":0},null,null,null,null,{"$f":"+G23+H23","v":0}]
[null,null,null,0,null,null,null,null,0]
[null,null,null,{"$f":"+B25+C25","v":0},null,null,null,null,0]
[null,null,null,0,null,null,null,null,0]
["TOTAL DE GASTOS DE PERSONAL (máximo 40% del importe imputable de la subvención municipal)",{"$f":"B22","v":0},{"$f":"C22","v":0},{"$f":"D22","v":0},null,null,{"$f":"G22","v":0},{"$f":"H22","v":0},{"$f":"I22","v":0},{"$f":"+IF(G27>H13*0.4,\"ALERTA: Máximo 40% del importe imputable a la subvención municipal\", \" \")","v":" "}]
["\nD.2 Trabajos realizados por profesionales y empresas externas directamente vinculadas al proyecto, gastos de licencias y tasas relacionadas con la constitución, inicio y desarrollo de la actividad.\n",{"$f":"SUM(B29:B32)","v":0},{"$f":"SUM(C29:C32)","v":0},{"$f":"+B28+C28","v":0},null,null,{"$f":"SUM(G29:G32)","v":0},{"$f":"SUM(H29:H32)","v":0},{"$f":"+G28+H28","v":0}]
[null,null,null,{"$f":"+B29+C29","v":0},null,null,null,null,{"$f":"+G29+H29","v":0}]
[null,null,null,0,null,null,null,null,0]
[null,null,null,0,null,null,null,null,0]
[null,null,null,0,null,null,null,null,0]
["TOTAL OTROS GASTOS DIRECTOS ",{"$f":"B28","v":0},{"$f":"C28","v":0},{"$f":"D28","v":0},null,null,{"$f":"G28","v":0},{"$f":"H28","v":0},{"$f":"I28","v":0}]
["TOTAL GASTOS DIRECTOS (aquellas que se identifican directamente con el proyecto subvencionable)",{"$f":"SUM(B27,B33)","v":0},{"$f":"SUM(C27,C33)","v":0},{"$f":"D27+D33","v":0},null,null,{"$f":"SUM(G27,G33)","v":0},{"$f":"SUM(H27,H33)","v":0},{"$f":"I27+I33","v":0}]
["I.1 Personal de soporte al proyecto (nóminas y seguridad social)",{"$f":"SUM(B36:B39)","v":0},{"$f":"SUM(C36:C39)","v":0},{"$f":"+B35+C35","v":0},null,null,{"$f":"SUM(G36:G39)","v":0},{"$f":"SUM(H36:H39)","v":0},{"$f":"+G35+H35","v":0}]
[null,null,null,{"$f":"+B36+C36","v":0},null,null,null,null,{"$f":"+G36+H36","v":0}]
[null,null,null,0,null,null,null,null,0]
[null,null,null,0,null,null,null,null,0]
[null,null,null,0,null,null,null,null,0]
["I.2 Seguros",{"$f":"SUM(B41:B44)","v":0},{"$f":"SUM(C41:C44)","v":0},0,null,null,{"$f":"SUM(G41:G44)","v":0},{"$f":"SUM(H41:H44)","v":0},0]
[null,null,null,0,null,null,null,null,0]
[null,null,null,0,null,null,null,null,0]
[null,null,null,0,null,null,null,null,0]
[null,null,null,0,null,null,null,null,0]
["I.3 Amortitzación",{"$f":"SUM(B46:B49)","v":0},{"$f":"SUM(C46:C49)","v":0},0,null,null,{"$f":"SUM(G46:G49)","v":0},{"$f":"SUM(H46:H49)","v":0},0]
[null,null,null,0,null,null,null,null,0]
[null,null,null,0,null,null,null,null,0]
[null,null,null,0,null,null,null,null,0]
[null,null,null,0,null,null,null,null,0]
["I.4 Alquiler de bienes inmuebles",{"$f":"SUM(B51:B54)","v":0},{"$f":"SUM(C51:C54)","v":0},0,null,null,{"$f":"SUM(G51:G54)","v":0},{"$f":"SUM(H51:H54)","v":0},0]
[null,null,null,0,null,null,null,null,0]
[null,null,null,0,null,null,null,null,0]
[null,null,null,0,null,null,null,null,0]
[null,null,null,0,null,null,null,null,0]
["I.5 Adquisición de materiales y bienes consumibles parcialmente imputables al proyecto.",{"$f":"SUM(B56:B59)","v":0},{"$f":"SUM(C56:C59)","v":0},0,null,null,{"$f":"SUM(G56:G59)","v":0},{"$f":"SUM(H56:H59)","v":0},0]
[null,null,null,0,null,null,null,null,0]
[null,null,null,0,null,null,null,null,0]
[null,null,null,0,null,null,null,null,0]
[null,null,null,0,null,null,null,null,0]
["I.6 Mantenimiento de edificios e instalaciones",{"$f":"SUM(B61:B64)","v":0},{"$f":"SUM(C61:C64)","v":0},0,null,null,{"$f":"SUM(G61:G64)","v":0},{"$f":"SUM(H61:H64)","v":0},0]
[null,null,null,0,null,null,null,null,0]
[null,null,null,0,null,null,null,null,0]
[null,null,null,0,null,null,null,null,0]
[null,null,null,0,null,null,null,null,0]
["I.7 Comunicaciones (teléfono, correos, conexión a internet)",{"$f":"SUM(B66:B69)","v":0},{"$f":"SUM(C66:C69)","v":0},0,null,null,{"$f":"SUM(G66:G69)","v":0},{"$f":"SUM(H66:H69)","v":0},0]
[null,null,null,0,null,null,null,null,0]
[null,null,null,0,null,null,null,null,0]
[null,null,null,0,null,null,null,null,0]
[null,null,null,0,null,null,null,null,0]
["I.8 Gastos financieros",{"$f":"SUM(B71:B74)","v":0},{"$f":"SUM(C71:C74)","v":0},0,null,null,{"$f":"SUM(G71:G74)","v":0},{"$f":"SUM(H71:H74)","v":0},0]
[null,null,null,0,null,null,null,null,0]
[null,null,null,0,null,null,null,null,0]
[null,null,null,0,null,null,null,null,0]
[null,null,null,0,null,null,null,null,0]
["I.9 Suministros ",{"$f":"SUM(B76:B80)","v":0},{"$f":"SUM(C76:C80)","v":0},0,null,null,{"$f":"SUM(G76:G80)","v":0},{"$f":"SUM(H76:H80)","v":0},0]
[null,null,null,0,null,null,null,null,0]
[null,null,null,0,null,null,null,null,0]
[]
[null,null,null,{"$f":"+B79+C79","v":0},null,null,null,null,0]
["I.10 Trabajo realizado para otras empresas, parcialmente imputables al proyecto (limpieza, seguridad…)",null,null,0,null,null,null,null,0]
[null,{"$f":"SUM(B82:B85)","v":0},{"$f":"SUM(C82:C85)","v":0},0,null,null,{"$f":"SUM(G82:G85)","v":0},{"$f":"SUM(H82:H85)","v":0},0]
[null,null,null,0,null,null,null,null,0]
[null,null,null,0,null,null,null,null,0]
[null,null,null,0,null,null,null,null,0]
[null,null,null,0,null,null,null,null,0]
["TOTAL GASTOS INDIRECTOS (se podrán imputar al proyecto subvencionable haciendo servir un porcentaje de asignación)-Máximo 10% del importe imputable en la subvención municipal.",{"$f":"SUM(B35,B40,B45,B50,B55,B60,B65,B70,B75,B81)","v":0},{"$f":"SUM(C35,C40,C45,C50,C55,C60,C65,C70,C75,C81)","v":0},{"$f":"D35+D40+D45+D50+D55+D60+D65+D70+D75+D81","v":0},null,null,{"$f":"SUM(G35,G40,G45,G50,G55,G60,G65,G70,G75,G81)","v":0},{"$f":"SUM(H35,H40,H45,H50,H55,H60,H65,H70,H75,H81)","v":0},{"$f":"I35+I40+I45+I50+I55+I60+I65+I70+I75+I81","v":0},{"$f":"+IF(G86>H13*0.1,\"Máximo 10% importe imputable a la subvención municipal\", \" \")","v":" "}]
["TOTAL GASTOS PREVISTOS",{"$f":"SUM(B34+B86)","v":0},{"$f":"SUM(C34+C86)","v":0},{"$f":"SUM(D34+D86)","v":0},null,null,{"$f":"SUM(G34+G86)","v":0},{"$f":"SUM(H34+H86)","v":0},{"$f":"SUM(I34+I86)","v":0}]
[]
[]
[]
[]
[]
[]
["Modalidad Ab Consolidación empresarial y escalabilidad de las iniciativas de Economía Social y Solidaria para fortalecer su viabilidad económica, así como la orientación de esta consolidación en el Acuerdo y Estrategia #ESSBCN2030"]
["1. La cuantía de la subvención otorgada no superará el 80% del gasto total del proyecto a subvencionar."]
["2.  El importe máximo de la subvención para la modalidad “b” del ámbito temático de Creación y Consolidación (Ab) es 10.000€. "]
["3. En caso de que la solicitud presentada sobrepase el importe máximo, se considerará como importe solicitado el máximo de lo establecido en la convocatoria."]
["4. Se limita con un máximo del 40% del importe de la subvención para gastos de personal propio que participa de forma directa y debidamente al proyecto subvencionable."]
["5. Sólo con carácter excepcional, los/las empresarios/as individuales que no tengan personas trabajadoras en plantilla podrán acreditar sus trabajos mediante una declaración responsable acompañada de las declaraciones IRPF (modelo 130) del ejercicio corriente.     El precio / hora imputado al proyecto subvencionado no podrá superar la cantidad resultante de dividir los rendimientos anuales netos del empresario/a individual para 1800."]
["6. En ningún caso se consideran Gastos subvencionables:   \n> Los impuestos indirectos cuando sean susceptibles de recuperación y compensación.\n> Los gastos de inversión, incluidas las adquisiciones de bienes inmuebles. \n> Los gastos realizados con fecha anterior al inicio del proyecto y fecha posterior a la finalización del proyecto.\n> Otros gastos que indiquen la convocatoria."]
["7.  Son imputables en esta modalidad los gastos indirectos, detallados en el apartado 13.3. de las bases reguladoras, con un máximo de un 10% del importe de la subvención. "]
["8. La retribución de las personas contratadas en el marco del proyecto subvencionado no puede ser inferior al Salario Mínimo Interprofesional (SMI), ni al estipulado en el correspondiente convenio o marco normativo de referencia (punto 7 de las bases 2021: requisitos de los proyectos). "]
["9. Los proyectos subvencionados han de fomentar actividades de interés público o social, estos deberán ser gratuitos para las personas participantes o en ningún caso el precio ha de suponer un obstáculo para su participación, buscando otras formas de acceso para personas con dificultades económicas. En el caso que haya algún tipo de lucro, se deberá revertir en las propias actividades subvencionadas.     "]
["10. El Ayuntamiento de Barcelona y sus entidades municipales en ningún caso subvencionaran el mismo proyecto, ejecutando durante un mismo periodo, por ningún otro procedimiento de concesión que no sea el regulado por las bases reguladoras.   "]
["11. El/la beneficiario/a no podrá alterar en ningún caso el destino de subvenciones concedidas. "]

{"sheet":"Resumen presupuesto","index":2,"n_rows":70,"n_cols":11,"rows_kept":70,"cut":false,"hidden":false,"merged":[[19,6,19,7],[24,6,24,9],[12,2,13,2],[12,3,13,3],[12,4,13,4],[9,1,10,1],[9,2,10,2],[9,3,10,3],[9,4,10,4],[6,6,7,7],[3,0,3,8],[6,8,7,8],[1,2,2,7],[6,9,7,9],[5,0,5,1],[6,0,7,1],[6,2,7,2],[6,3,7,3],[6,4,7,4]]}
[]
[null,null,"Resumen presupuesto"]
[]
["Programa de subvenciones del Ayuntamiento de Barcelona para la reactivación y fortalecimiento de la Economía Social y Solidaria y el desarrollo de proyectos de intercooperación que desarrollan la Estrategia #ESSBCN2030",null,null,null,null,null,null,null,null,"MODALIDAD Ab"]
[]
["GASTOS PREVISTOS",null,null,null,null,null,"INGRESOS PREVISTOS"]
["Gastos directos \n(aquellos que se identifican directamente con el proyecto)",null,"Previsión inicial coste total","Previsión reformulada coste total","Importe imputado a la subvención otorgada",null,"Ingresos previstos",null,"Previsión inicial ingreso total","Previsión reformulada ingreso total"]
[]
["Ab","D.1  Nóminas y seguridad social IRPF (régimen general o régimen de autónomos) del personal propio vinculado al proyecto subvencionado (máximo 40% subvención)",{"$f":"+'Reformulación Presupuesto Ab'!D22","v":0},{"$f":"+'Reformulación Presupuesto Ab'!I22","v":0},{"$f":"+'Reformulación Presupuesto Ab'!G22","v":0},{"$f":"+IF(D9<0,\"No s'admeten valors negatius\",\"\")","v":""},"A.","Subvención municipal (importe solicitado a la instancia/otorgado)"]
[null,"D.2 Trabajos realizados por profesionales y empresas externas directamente vinculadas al proyecto subvencionado",{"$f":"+'Reformulación Presupuesto Ab'!D28","v":0},{"$f":"+'Reformulación Presupuesto Ab'!I28","v":0},{"$f":"+'Reformulación Presupuesto Ab'!G28","v":0},null,"B.","Subvenciones de otras administraciones",null,null,{"$f":"+IF(J10<0,\"No s'admeten valors negatius\",\"\")","v":""}]
[null,null,null,null,null,{"$f":"+IF(D10<0,\"No s'admeten valors negatius\",\"\")","v":""},"C.","Subvenciones de entes privados",null,null,""]
[null,"Total Gastos Directos   ",{"$f":"SUM(C9:C11)","v":0},{"$f":"SUM(D9:D11)","v":0},{"$f":"SUM(E9:E11)","v":0},{"$f":"+IF(D11<0,\"No s'admeten valors negatius\",\"\")","v":""},"D.","Recursos propios de la organización aplicados al proyecto"]
[null,null,"Previsión inicial","Previsión reformulada","Importe imputado a la subvención",{"$f":"+IF(D12<0,\"No s'admeten valors negatius\",\"\")","v":""},"E.","Taquillaje"]
["Gastos Indirectos (máximo 10% subvención)",null,null,null,null,null,"F.","Cuotas de inscripción"]
[null,null,{"$f":"+'Reformulación Presupuesto Ab'!D86","v":0},{"$f":"+'Reformulación Presupuesto Ab'!I86","v":0},{"$f":"+'Reformulación Presupuesto Ab'!G86","v":0},null,"G.","Venta de productos"]
[null,null,null,null,null,null,"H","Publicidad y/o Esponsorización"]
[null,null,null,null,null,null,"I.","Otros ingresos"]
[null,null,null,null,null,null,null,"Total Ingresos",{"$f":"SUM(I9:I17)","v":0},{"$f":"SUM(J9:J17)","v":0}]
[null,"Total Gastos Indirectos ",{"$f":"SUM(C15:C18)","v":0},{"$f":"SUM(D15:D18)","v":0},{"$f":"SUM(E15:E18)","v":0}]
[null,"Total Gastos ",{"$f":"+C12+C19","v":0},{"$f":"+D12+D19","v":0},{"$f":"+E12+E19","v":0},null,"Ingresos menos gastos",null,{"$f":"+I18-C20","v":0},{"$f":"+J18-D20","v":0}]
[]
[null,null,null,null,null,null,null,null,"% subvencionado inicialmente",{"$f":"I9/C20","v":{"$error":"#DIV/0!"}}]
[]
[null,null,null,null,null,null,null,null,"% subvencionado después de reformular",{"$f":"+J9/D20","v":{"$error":"#DIV/0!"}},"*"]
[null,null,null,null,null,null,"* Este porcentaje debe ser igual o menor al porcentaje subvencionado inicialmente."]
[]
[]
[]
[]
[]
[]
[]
[]
[]
[]
[]
[]
[]
[]
[]
[]
[]
[]
[]
[]
[]
[]
[]
[]
[]
[]
[]
[]
[]
[]
[]
[]
[]
[]
[]
[]
[]
[]
[]
[]
[]
[]
[]
[]
[null,null,0]